[Event "ROU-chT 1st League 2019"]
[Site "Mamaia"]
[Date "2019.09.21"]
[Round "1.4"]
[White "Marin, Mihail"]
[Black "Nastase, Robert-Paul"]
[Result "1-0"]
[ECO "A02"]
[WhiteElo "2524"]
[BlackElo "2280"]
[Annotator "ChessBase"]
[PlyCount "85"]
[EventDate "2019.09.21"]
[EventType "team-tourn"]
[EventCountry "ROU"]
[SourceTitle "playchess.com"]
[Source "ChessBase"]
[SourceQuality "1"]
[TimeControl "40/5400+30:1800+30"]

1. f4 {[%emt 0:00:00]} c5 {[%emt 0:00:00]} 2. Nf3 {[%emt 0:00:00]} g6 {[%emt 0:00:00]} 3. g3 {[%emt 0:00:00]} Bg7 {[%emt 0:00:00]} 4. Bg2 {[%emt 0:00:00]} Nc6 {[%emt 0:00:00]} 5. O-O {[%emt 0:00:20]} d6 {[%emt 0:00:20]} 6. d3 {[%emt 0:00:28]} e6 {[%emt 0:02:36]} 7. e4 {[%emt 0:03:51]} Nge7 {[%emt 0:00:17]} 8. c3 {[%emt 0:00:13]} O-O {[%emt 0:01:19]} 9. Be3 {[%emt 0:00:07]} b6 {[%emt 0:05:56]} 10. d4 {[%emt 0:01:35]} Ba6 {[%emt 0:10:40]} 11. Re1 {[%emt 0:01:54]} Rc8 {[%emt 0:00:08]} 12. Na3 {[%emt 0:03:24]} Na5 {[%emt 0:08:35]} 13. dxc5 {[%emt 0:07:46]} dxc5 {[%emt 0:00:25]} 14. Qa4 {[%emt 0:02:40]} Qe8 {[%emt 0:01:36]} 15. Qxe8 {[%emt 0:01:33]} Rfxe8 {[%emt 0:00:07]} 16. e5 {[%emt 0:00:15]} Nd5 {[%emt 0:06:36]} 17. Bf2 {[%emt 0:04:30]} Bf8 {[%emt 0:00:05]} 18. Ng5 {[%emt 0:03:25]} b5 {[%emt 0:01:45]} 19. Bf1 {[%emt 0:02:19]} c4 {[%emt 0:00:46]} 20. Nc2 {[%emt 0:00:29]} b4 {[%emt 0:00:45]} 21. Ne4 {[%emt 0:01:40]} bxc3 {[%emt 0:00:55]} 22. bxc3 {[%emt 0:00:08]} Rc7 {[%emt 0:07:54]} 23. Ne3 {[%emt 0:03:01]} Kg7 {[%emt 0:04:37]} 24. Nxd5 {[%emt 0:01:02]} exd5 {[%emt 0:00:06]} 25. Nf6 {[%emt 0:00:07]} Rd8 {[%emt 0:01:32]} 26. Bg2 {[%emt 0:00:17]} Bc5 {[%emt 0:00:32]} 27. Bxd5 {[%emt 0:02:59]} Bxf2+ {[%emt 0:03:24]} 28. Kxf2 {[%emt 0:00:07]} Bb7 {[%emt 0:00:08]} 29. Rad1 {[%emt 0:01:20]} Bxd5 {[%emt 0:01:50]} 30. Rxd5 {[%emt 0:07:56]} Rxd5 {[%emt 0:00:02]} 31. Nxd5 {[%emt 0:00:06]} Rb7 {[%emt 0:01:13]} 32. Nf6 {[%emt 0:03:08]} Nc6 {[%emt 0:00:27]} 33. Ne8+ {[%emt 0:03:27]} Kf8 {[%emt 0:00:05]} 34. Nd6 {[%emt 0:00:05]} Rb2+ {[%emt 0:00:03]} 35. Re2 {[%emt 0:00:07]} Rb1 {[%emt 0:00:02]} 36. Rc2 {[%emt 0:00:36]} Na5 {[%emt 0:00:15]} 37. Ke3 {[%emt 0:00:52]} Ke7 {[%emt 0:03:30]} 38. Rd2 {[%emt 0:04:26]} Ke6 {[%emt 0:01:10]} 39. Kd4 {[%emt 0:06:27]} f6 {[%emt 0:01:35]} 40. Nxc4 {[%emt 0:00:00]} Rb5 {[%emt 0:00:00]} 41. Nxa5 {[%emt 0:03:01]} fxe5+ {[%emt 0:00:10]} 42. Kc4 {[%emt 0:00:31]} Rxa5 {[%emt 0:00:16]} 43. Re2 {[%emt 0:00:08] Kd5+} 1-0

[Event "ROU-chT 1st League 2019"]
[Site "Mamaia"]
[Date "2019.09.21"]
[Round "1.5"]
[White "Vasile, Claudiu-Daniel"]
[Black "Manolache, Marius"]
[Result "0-1"]
[ECO "B07"]
[WhiteElo "2233"]
[BlackElo "2548"]
[Annotator "ChessBase"]
[PlyCount "122"]
[EventDate "2019.09.21"]
[EventType "team-tourn"]
[EventCountry "ROU"]
[SourceTitle "playchess.com"]
[Source "ChessBase"]
[SourceQuality "1"]
[TimeControl "40/5400+30:1800+30"]

1. e4 {[%emt 0:00:00]} d6 {[%emt 0:00:00]} 2. d4 {[%emt 0:00:00]} Nf6 {[%emt 0:00:00]} 3. Nc3 {[%emt 0:00:00]} g6 {[%emt 0:00:00]} 4. Be3 {[%emt 0:00:40]} c6 {[%emt 0:00:28]} 5. Nf3 {[%emt 0:01:00]} Bg7 {[%emt 0:00:40]} 6. h3 {[%emt 0:00:36]} O-O {[%emt 0:00:19]} 7. a4 {[%emt 0:01:17]} b6 {[%emt 0:07:24]} 8. Be2 {[%emt 0:06:50]} Bb7 {[%emt 0:02:27]} 9. O-O {[%emt 0:03:05]} a6 {[%emt 0:06:48]} 10. e5 {[%emt 0:13:53]} dxe5 {[%emt 0:04:54]} 11. dxe5 {[%emt 0:02:36]} Nd5 {[%emt 0:00:09]} 12. Nxd5 {[%emt 0:04:50]} cxd5 {[%emt 0:00:06]} 13. Qd4 {[%emt 0:04:06]} Nc6 {[%emt 0:11:56]} 14. Qxb6 {[%emt 0:02:43]} Qxb6 {[%emt 0:00:58]} 15. Bxb6 {[%emt 0:00:02]} Nxe5 {[%emt 0:00:09]} 16. Nxe5 {[%emt 0:03:53]} Bxe5 {[%emt 0:00:03]} 17. c3 {[%emt 0:00:47]} Rfc8 {[%emt 0:01:31]} 18. a5 {[%emt 0:07:05]} e6 {[%emt 0:15:17]} 19. Rfe1 {[%emt 0:07:02]} Bf6 {[%emt 0:01:44]} 20. Red1 {[%emt 0:05:24]} Bc6 {[%emt 0:09:34]} 21. Kf1 {[%emt 0:06:34]} h5 {[%emt 0:01:01]} 22. Ra2 {[%emt 0:02:21]} Bg7 {[%emt 0:02:28]} 23. Bd3 {[%emt 0:04:02]} Be8 {[%emt 0:05:22]} 24. Be2 {[%emt 0:01:04]} Bf6 {[%emt 0:02:47]} 25. Raa1 {[%emt 0:01:03]} Be7 {[%emt 0:04:11]} 26. Bd4 {[%emt 0:04:23]} f6 {[%emt 0:03:22]} 27. Bb6 {[%emt 0:02:38]} Kf7 {[%emt 0:04:10]} 28. Rd4 {[%emt 0:03:03]} Bc6 {[%emt 0:01:12]} 29. Rd2 {[%emt 0:04:06]} f5 {[%emt 0:08:37]} 30. Rdd1 {[%emt 0:02:58]} Bf6 {[%emt 0:00:42]} 31. Rd2 {[%emt 0:01:59]} Bb7 {[%emt 0:01:42]} 32. Bf3 {[%emt 0:00:21]} h4 {[%emt 0:00:55]} 33. Bd4 {[%emt 0:04:57]} Bc6 {[%emt 0:00:58]} 34. Be2 {[%emt 0:00:44]} e5 {[%emt 0:00:23]} 35. Bb6 {[%emt 0:00:12]} Bg5 {[%emt 0:01:25]} 36. Rdd1 {[%emt 0:00:09]} Be7 {[%emt 0:00:43]} 37. f4 {[%emt 0:00:45]} e4 {[%emt 0:02:03]} 38. c4 {[%emt 0:00:46]} dxc4 {[%emt 0:01:48]} 39. Bxc4+ {[%emt 0:00:02]} Kg7 {[%emt 0:00:07]} 40. b3 {[%emt 0:00:00]} Bb4 {[%emt 0:00:00]} 41. Bf2 {[%emt 0:07:46]} Be7 {[%emt 0:01:19]} 42. Bb6 {[%emt 0:02:05]} g5 {[%emt 0:05:03]} 43. fxg5 {[%emt 0:04:26]} Kg6 {[%emt 0:00:26]} 44. Rac1 {[%emt 0:04:24]} Kxg5 {[%emt 0:00:16]} 45. Be6 {[%emt 0:00:53]} Bb5+ {[%emt 0:01:36]} 46. Kg1 {[%emt 0:03:23]} Rxc1 {[%emt 0:00:42]} 47. Rxc1 {[%emt 0:00:14]} Re8 {[%emt 0:08:29]} 48. Bc4 {[%emt 0:03:52]} Bxc4 {[%emt 0:03:29]} 49. bxc4 {[%emt 0:00:11]} Rc8 {[%emt 0:00:15]} 50. Kf2 {[%emt 0:02:54]} Kf4 {[%emt 0:01:54]} 51. Rc2 {[%emt 0:04:13]} Ke5 {[%emt 0:04:10]} 52. Kf1 {[%emt 0:01:24]} f4 {[%emt 0:01:40]} 53. Ke2 {[%emt 0:01:20]} Rc6 {[%emt 0:02:21]} 54. c5 {[%emt 0:01:27]} Rg6 {[%emt 0:02:40]} 55. Kf1 {[%emt 0:00:16]} Kd5 {[%emt 0:00:18]} 56. Rd2+ {[%emt 0:00:32]} Kc6 {[%emt 0:00:33]} 57. Bd8 {[%emt 0:00:36]} Bxc5 {[%emt 0:01:01]} 58. Bxh4 {[%emt 0:00:11]} Kb5 {[%emt 0:01:27]} 59. Be1 {[%emt 0:00:32]} f3 {[%emt 0:00:21]} 60. gxf3 {[%emt 0:00:48]} Rg1+ {[%emt 0:00:15]} 61. Ke2 {[%emt 0:00:00]} exf3+ {[%emt 0:00:10]} 0-1

[Event "ROU-chT 1st League 2019"]
[Site "Mamaia"]
[Date "2019.09.21"]
[Round "1.6"]
[White "Banzea, Alexandru-Bogdan"]
[Black "Ciorica, Mihai-Vlad"]
[Result "1/2-1/2"]
[ECO "B40"]
[WhiteElo "2401"]
[BlackElo "1985"]
[Annotator "NA"]
[PlyCount "51"]
[EventDate "2019.09.21"]
[EventType "team-tourn"]
[EventCountry "ROU"]
[SourceTitle "playchess.com"]
[Source "ChessBase"]
[SourceQuality "1"]
[TimeControl "40/5400+30:1800+30"]

1. e4 {[%emt 0:00:00]} c5 {[%emt 0:00:00]} 2. Nf3 {[%emt 0:00:00]} e6 {[%emt 0:00:00]} 3. d4 {[%emt 0:00:01]} cxd4 {[%emt 0:00:00]} 4. Nxd4 {[%emt 0:00:05]} Qb6 {[%emt 0:00:00]} 5. Nb3 {[%emt 0:03:08]} Nc6 {[%emt 0:00:32]} 6. Nc3 {[%emt 0:00:13]} a6 {[%emt 0:00:10]} 7. Be2 {[%emt 0:04:10]} Nf6 {[%emt 0:00:25]} 8. O-O {[%emt 0:00:07]} d6 {[%emt 0:01:23]} 9. Be3 {[%emt 0:00:21]} Qc7 {[%emt 0:00:05]} 10. f4 {[%emt 0:00:19]} b5 {[%emt 0:00:32]} 11. a3 {[%emt 0:01:53]} Be7 {[%emt 0:00:29]} 12. Qe1 {[%emt 0:01:14]} Bb7 {[%emt 0:00:50]} 13. Rc1 {[%emt 0:05:13]} O-O {[%emt 0:09:57]} 14. g4 {[%emt 0:03:31]} Rfe8 {[%emt 0:04:09]} 15. g5 {[%emt 0:02:01]} Nd7 {[%emt 0:00:07]} 16. Qg3 {[%emt 0:09:04]} Bf8 {[%emt 0:02:14]} 17. h4 {[%emt 0:16:14]} Rac8 {[%emt 0:04:43]} 18. h5 {[%emt 0:01:28]} Na5 {[%emt 0:06:40]} 19. Nxa5 {[%emt 0:10:09]} Qxa5 {[%emt 0:01:00]} 20. Bd3 {[%emt 0:00:27]} b4 {[%emt 0:08:10]} 21. axb4 {[%emt 0:04:55]} Qxb4 {[%emt 0:00:43]} 22. Ra1 {[%emt 0:08:50]} Nc5 {[%emt 0:03:12]} 23. Na2 {[%emt 0:08:00]} Qa4 {[%emt 0:02:19]} 24. Nc3 {[%emt 0:00:50]} Qb4 {[%emt 0:00:04]} 25. Na2 {[%emt 0:01:26]} Qa4 {[%emt 0:00:06]} 26. Nc3 {[%emt 0:01:40]} 1/2-1/2

[Event "ROU-chT 1st League 2019"]
[Site "Mamaia"]
[Date "2019.09.21"]
[Round "1.9"]
[White "Ciorgovean, Iustin"]
[Black "Svetushkin, Dmitry"]
[Result "0-1"]
[ECO "D15"]
[WhiteElo "2331"]
[BlackElo "2534"]
[Annotator "ChessBase"]
[PlyCount "96"]
[EventDate "2019.09.21"]
[EventType "team-tourn"]
[EventCountry "ROU"]
[SourceTitle "playchess.com"]
[Source "ChessBase"]
[SourceQuality "1"]
[TimeControl "40/5400+30:1800+30"]

1. d4 {[%emt 0:00:00]} d5 2. c4 c6 {[%emt 0:00:03]} 3. Nf3 {[%emt 0:00:00]} Nf6 {[%emt 0:00:11]} 4. Nc3 {[%emt 0:00:18]} a6 {[%emt 0:00:26]} 5. c5 {[%emt 0:00:05]} g6 {[%emt 0:00:30]} 6. h3 {[%emt 0:01:44]} Bg7 {[%emt 0:02:09]} 7. Bf4 {[%emt 0:00:19]} Bf5 {[%emt 0:01:18]} 8. Qb3 {[%emt 0:08:09]} Qc8 {[%emt 0:01:19]} 9. e3 {[%emt 0:01:21]} Nbd7 {[%emt 0:00:56]} 10. Be2 {[%emt 0:18:41]} Be4 {[%emt 0:00:50]} 11. O-O {[%emt 0:01:05]} Bxf3 {[%emt 0:00:17]} 12. Bxf3 {[%emt 0:00:04]} O-O {[%emt 0:06:46]} 13. Rfd1 {[%emt 0:04:51]} Re8 {[%emt 0:22:58]} 14. Na4 {[%emt 0:11:33]} Ra7 {[%emt 0:04:51]} 15. Qc3 {[%emt 0:04:03]} h6 {[%emt 0:02:10]} 16. h4 {[%emt 0:15:06]} h5 {[%emt 0:05:56]} 17. Rac1 {[%emt 0:04:32]} Kh7 {[%emt 0:06:18]} 18. b4 {[%emt 0:04:27]} Bh6 {[%emt 0:06:58]} 19. Nb2 {[%emt 0:03:42]} Ng4 {[%emt 0:05:41]} 20. Nd3 {[%emt 0:03:45]} f5 {[%emt 0:01:15]} 21. a4 {[%emt 0:01:58]} Bg7 {[%emt 0:00:31]} 22. b5 {[%emt 0:08:12]} axb5 {[%emt 0:00:44]} 23. axb5 {[%emt 0:00:04]} e5 {[%emt 0:00:18]} 24. dxe5 {[%emt 0:00:23]} Ndxe5 {[%emt 0:05:34]} 25. Nxe5 {[%emt 0:00:21]} Nxe5 {[%emt 0:00:30]} 26. Bxe5 {[%emt 0:00:17]} Bxe5 {[%emt 0:00:19]} 27. Qb4 {[%emt 0:01:07]} Qe6 {[%emt 0:00:36]} 28. Rc2 {[%emt 0:03:27]} Rea8 {[%emt 0:02:29]} 29. g3 {[%emt 0:01:25]} Ra3 {[%emt 0:06:44]} 30. Kg2 {[%emt 0:01:37]} R8a4 {[%emt 0:00:51]} 31. Qd2 {[%emt 0:00:32]} Bg7 {[%emt 0:03:50]} 32. bxc6 {[%emt 0:01:13]} bxc6 {[%emt 0:00:05]} 33. Rb1 {[%emt 0:00:10]} d4 {[%emt 0:03:43]} 34. Re1 {[%emt 0:00:59]} d3 {[%emt 0:01:14]} 35. Rcc1 {[%emt 0:00:07]} Be5 {[%emt 0:03:40]} 36. Red1 {[%emt 0:00:42]} Qf6 {[%emt 0:03:25]} 37. Rb1 {[%emt 0:00:37]} Bxg3 {[%emt 0:00:26]} 38. Rb7+ {[%emt 0:00:32]} Kh6 {[%emt 0:00:07]} 39. Kxg3 {[%emt 0:01:12]} Ra2 {[%emt 0:00:57]} 40. Qe1 {[%emt 0:00:00]} Qxh4+ {[%emt 0:00:00]} 41. Kg2 {[%emt 0:01:26]} Rg4+ {[%emt 0:04:51]} 42. Bxg4 {[%emt 0:00:26]} Qxg4+ {[%emt 0:00:07]} 43. Kh2 {[%emt 0:12:34]} Qf3 {[%emt 0:03:47]} 44. Qd2 {[%emt 0:06:48]} Rxd2 {[%emt 0:02:19]} 45. Rxd2 {[%emt 0:00:04]} h4 {[%emt 0:00:53]} 46. Rb4 {[%emt 0:02:12]} g5 {[%emt 0:00:15]} 47. Rb1 {[%emt 0:00:13]} g4 {[%emt 0:00:52]} 48. Rg1 {[%emt 0:00:16]} Qh3# 0-1

[Event "ROU-chT 1st League 2019"]
[Site "Mamaia"]
[Date "2019.09.21"]
[Round "1.11"]
[White "Prodileanu, Adrian"]
[Black "Nevednichy, Vladislav"]
[Result "0-1"]
[ECO "A13"]
[WhiteElo "2236"]
[BlackElo "2522"]
[Annotator "ChessBase"]
[PlyCount "165"]
[EventDate "2019.09.21"]
[EventType "team-tourn"]
[EventCountry "ROU"]
[SourceTitle "playchess.com"]
[Source "ChessBase"]
[SourceQuality "1"]
[TimeControl "40/5400+30:1800+30"]

1. c4 {[%emt 0:00:00]} e6 {[%emt 0:00:00]} 2. g3 {[%emt 0:00:00]} d5 {[%emt 0:00:00]} 3. Bg2 {[%emt 0:00:14]} dxc4 {[%emt 0:00:00]} 4. Qa4+ {[%emt 0:00:26]} Qd7 {[%emt 0:00:00]} 5. Qxc4 {[%emt 0:00:38]} c5 {[%emt 0:00:00]} 6. Nf3 {[%emt 0:04:17]} Nc6 {[%emt 0:00:01]} 7. O-O {[%emt 0:00:41]} Nf6 {[%emt 0:00:20]} 8. b3 {[%emt 0:02:43]} b6 {[%emt 0:01:38]} 9. Bb2 {[%emt 0:16:08]} Bb7 {[%emt 0:00:15]} 10. d4 {[%emt 0:01:26]} Rc8 {[%emt 0:07:32]} 11. dxc5 {[%emt 0:14:51]} Bxc5 {[%emt 0:00:11]} 12. Nc3 {[%emt 0:00:56]} O-O {[%emt 0:03:10]} 13. Rad1 {[%emt 0:11:56]} Qe7 {[%emt 0:02:00]} 14. Ne4 {[%emt 0:02:47]} Nxe4 {[%emt 0:01:44]} 15. Qxe4 {[%emt 0:00:06]} Nd4 {[%emt 0:04:37]} 16. Qd3 {[%emt 0:06:08]} Nxf3+ {[%emt 0:09:23]} 17. Bxf3 {[%emt 0:01:15]} Rfd8 {[%emt 0:00:04]} 18. Qb1 {[%emt 0:00:19]} f6 {[%emt 0:05:26]} 19. Rxd8+ {[%emt 0:11:29]} Rxd8 {[%emt 0:00:01]} 20. Rd1 {[%emt 0:00:24]} Bxf3 {[%emt 0:01:12]} 21. exf3 {[%emt 0:00:41]} b5 {[%emt 0:01:39]} 22. Rd3 {[%emt 0:09:45]} Rd5 {[%emt 0:00:46]} 23. Qd1 {[%emt 0:01:24]} Qd6 {[%emt 0:01:48]} 24. Rxd5 {[%emt 0:00:21]} exd5 {[%emt 0:00:30]} 25. Qd3 {[%emt 0:02:46]} a6 {[%emt 0:02:00]} 26. Kf1 {[%emt 0:03:53]} Qe6 {[%emt 0:01:06]} 27. h4 {[%emt 0:01:23]} Be7 {[%emt 0:02:53]} 28. Bd4 {[%emt 0:01:33]} g6 {[%emt 0:01:18]} 29. Qe3 {[%emt 0:02:01]} Kf7 {[%emt 0:01:53]} 30. Qh6 {[%emt 0:01:49]} Kg8 {[%emt 0:00:15]} 31. Qe3 {[%emt 0:00:09]} Qd7 {[%emt 0:01:03]} 32. Ke2 {[%emt 0:00:43]} h5 {[%emt 0:01:49]} 33. Qd3 {[%emt 0:01:13]} Kf7 {[%emt 0:00:09]} 34. Kf1 {[%emt 0:00:43]} a5 {[%emt 0:01:50]} 35. Kg2 {[%emt 0:00:18]} a4 {[%emt 0:00:08]} 36. bxa4 {[%emt 0:00:53]} bxa4 {[%emt 0:00:03]} 37. Qc2 {[%emt 0:00:31]} Qb5 {[%emt 0:02:03]} 38. Qd2 {[%emt 0:01:27]} Qc4 {[%emt 0:00:48]} 39. Bc3 {[%emt 0:00:39]} a3 {[%emt 0:05:06]} 40. Ba1 {[%emt 0:00:00]} g5 {[%emt 0:00:00]} 41. hxg5 {[%emt 0:21:06]} fxg5 {[%emt 0:06:24]} 42. Bd4 {[%emt 0:01:58]} Ke8 {[%emt 0:07:59]} 43. f4 {[%emt 0:03:04]} gxf4 {[%emt 0:02:19]} 44. Qxf4 {[%emt 0:00:21]} Qxa2 {[%emt 0:00:44]} 45. Qb8+ {[%emt 0:00:46]} Kd7 {[%emt 0:00:19]} 46. Qb7+ {[%emt 0:02:57]} Ke6 {[%emt 0:00:21]} 47. Qc6+ {[%emt 0:00:06]} Kf7 {[%emt 0:00:04]} 48. Qd7 {[%emt 0:00:07]} Qc4 {[%emt 0:01:18]} 49. Qf5+ {[%emt 0:01:06]} Ke8 {[%emt 0:00:03]} 50. Qxh5+ {[%emt 0:00:08]} Kd8 {[%emt 0:01:55]} 51. Qe5 {[%emt 0:01:33]} Kd7 {[%emt 0:02:31]} 52. g4 {[%emt 0:01:46]} a2 {[%emt 0:03:30]} 53. Qf5+ {[%emt 0:01:17]} Kd8 {[%emt 0:00:49]} 54. Qe5 {[%emt 0:00:24]} Kd7 {[%emt 0:06:06]} 55. Qf5+ {[%emt 0:00:13]} Kc6 {[%emt 0:03:43]} 56. Qg6+ {[%emt 0:00:55]} Bd6 {[%emt 0:01:53]} 57. Qf6 {[%emt 0:00:11]} Kb5 {[%emt 0:02:03]} 58. g5 {[%emt 0:01:04]} Bc5 {[%emt 0:00:04]} 59. Bxc5 {[%emt 0:00:58]} Kxc5 {[%emt 0:00:32]} 60. g6 {[%emt 0:00:23]} Qe4+ {[%emt 0:02:09]} 61. Kh2 {[%emt 0:00:22]} d4 {[%emt 0:02:36]} 62. Qf8+ {[%emt 0:00:25]} Kb5 {[%emt 0:01:51]} 63. Qb8+ {[%emt 0:00:31]} Ka4 {[%emt 0:01:23]} 64. Qa7+ {[%emt 0:00:10]} Kb3 {[%emt 0:00:06]} 65. g7 {[%emt 0:00:11]} Qf4+ {[%emt 0:01:23]} 66. Kg2 {[%emt 0:00:14]} Qg5+ {[%emt 0:00:23]} 67. Kf3 {[%emt 0:01:27]} Qd5+ {[%emt 0:01:14]} 68. Kg3 {[%emt 0:00:21]} d3 {[%emt 0:01:35]} 69. Qb8+ {[%emt 0:00:30]} Kc2 {[%emt 0:00:02]} 70. Qc8+ {[%emt 0:00:18]} Kd2 {[%emt 0:00:31]} 71. g8=Q {[%emt 0:00:24]} Qe5+ {[%emt 0:01:31]} 72. Kg2 {[%emt 0:00:52]} a1=Q {[%emt 0:00:17]} 73. Qcc4 {[%emt 0:00:21]} Qab2 {[%emt 0:02:04]} 74. Qa2 {[%emt 0:01:02]} Qe4+ {[%emt 0:01:31]} 75. Kg1 {[%emt 0:00:20]} Qxa2 {[%emt 0:03:00]} 76. Qxa2+ {[%emt 0:00:07]} Ke1 {[%emt 0:00:02]} 77. Qb1+ {[%emt 0:01:01]} Ke2 {[%emt 0:00:03]} 78. Qf1+ {[%emt 0:00:34]} Kd2 {[%emt 0:00:05]} 79. Qh3 {[%emt 0:00:14]} Kc2 {[%emt 0:02:14]} 80. Qc8+ {[%emt 0:00:36]} Kd1 {[%emt 0:00:04]} 81. Qg8 {[%emt 0:00:39]} Ke1 {[%emt 0:01:03]} 82. Qg3 {[%emt 0:00:30]} Ke2 {[%emt 0:00:26]} 83. Qh3 0-1

[Event "ROU-chT 1st League 2019"]
[Site "Mamaia"]
[Date "2019.09.21"]
[Round "1.12"]
[White "Costachi, Mihnea"]
[Black "Micu, Iulian"]
[Result "1-0"]
[ECO "E73"]
[WhiteElo "2463"]
[BlackElo "2165"]
[Annotator "ChessBase"]
[PlyCount "69"]
[EventDate "2019.09.21"]
[EventType "team-tourn"]
[EventCountry "ROU"]
[SourceTitle "playchess.com"]
[Source "ChessBase"]
[SourceQuality "1"]
[TimeControl "40/5400+30:1800+30"]

1. d4 {[%emt 0:00:00]} Nf6 {[%emt 0:00:00]} 2. c4 {[%emt 0:00:30]} g6 {[%emt 0:00:00]} 3. Nc3 {[%emt 0:00:09]} Bg7 {[%emt 0:00:00]} 4. e4 {[%emt 0:00:34]} d6 {[%emt 0:00:00]} 5. Be2 {[%emt 0:00:05]} O-O {[%emt 0:00:19]} 6. Bg5 {[%emt 0:00:04]} Na6 {[%emt 0:01:53]} 7. Qd2 {[%emt 0:00:32]} c6 {[%emt 0:05:50]} 8. f3 {[%emt 0:08:49]} e5 {[%emt 0:08:10]} 9. d5 {[%emt 0:00:09]} cxd5 {[%emt 0:08:06]} 10. cxd5 {[%emt 0:00:25]} Bd7 {[%emt 0:01:44]} 11. Bxa6 {[%emt 0:00:35]} bxa6 {[%emt 0:00:09]} 12. Nge2 {[%emt 0:00:04]} Qb6 {[%emt 0:02:52]} 13. Be3 {[%emt 0:00:13]} Qb7 {[%emt 0:00:25]} 14. O-O {[%emt 0:00:39]} Nh5 {[%emt 0:01:17]} 15. g4 {[%emt 0:01:33]} Nf6 {[%emt 0:01:46]} 16. Ng3 {[%emt 0:04:06]} Rfc8 {[%emt 0:00:24]} 17. Rac1 {[%emt 0:01:47]} Ne8 {[%emt 0:04:09]} 18. Rc2 {[%emt 0:05:01]} Bf6 {[%emt 0:07:15]} 19. Kh1 {[%emt 0:08:19]} Bd8 {[%emt 0:02:14]} 20. Rfc1 {[%emt 0:02:38]} Ba5 {[%emt 0:04:20]} 21. Qf2 {[%emt 0:02:11]} Rc7 {[%emt 0:06:21]} 22. h4 {[%emt 0:03:32]} Rac8 {[%emt 0:06:11]} 23. h5 {[%emt 0:04:00]} Bb6 {[%emt 0:00:35]} 24. Kg2 {[%emt 0:02:39]} Ng7 {[%emt 0:07:02]} 25. Rh1 {[%emt 0:03:42]} f5 {[%emt 0:13:46]} 26. Bxb6 {[%emt 0:03:36]} axb6 {[%emt 0:01:52]} 27. gxf5 {[%emt 0:02:46]} gxf5 {[%emt 0:00:25]} 28. h6 {[%emt 0:00:04]} f4 {[%emt 0:00:49]} 29. Nf1 {[%emt 0:05:28]} Ne8 {[%emt 0:06:15]} 30. Kh2 {[%emt 0:00:46]} Bb5 {[%emt 0:01:08]} 31. Qh4 {[%emt 0:01:27]} Bxf1 {[%emt 0:04:33]} 32. Rxf1 {[%emt 0:04:25]} Rf7 {[%emt 0:00:16]} 33. Rg1+ {[%emt 0:00:53]} Kf8 {[%emt 0:00:25]} 34. Rcg2 {[%emt 0:00:24]} Nf6 {[%emt 0:00:20]} 35. Qxf6 {[%emt 0:00:13]} 1-0

[Event "ROU-chT 1st League 2019"]
[Site "Mamaia"]
[Date "2019.09.21"]
[Round "1.14"]
[White "Sivuk, Vitaly"]
[Black "Aczel, Gergely"]
[Result "1-0"]
[ECO "E32"]
[WhiteElo "2559"]
[BlackElo "2530"]
[Annotator "ChessBase"]
[PlyCount "63"]
[EventDate "2019.09.21"]
[EventType "team-tourn"]
[EventCountry "ROU"]
[SourceTitle "playchess.com"]
[Source "ChessBase"]
[SourceQuality "1"]
[TimeControl "40/5400+30:1800+30"]

1. d4 {[%emt 0:00:00]} Nf6 {[%emt 0:00:00]} 2. c4 {[%emt 0:00:00]} e6 {[%emt 0:00:00]} 3. Nc3 {[%emt 0:00:00]} Bb4 {[%emt 0:00:00]} 4. Qc2 {[%emt 0:00:08]} O-O {[%emt 0:00:00]} 5. e4 {[%emt 0:00:12]} d6 {[%emt 0:00:11]} 6. e5 {[%emt 0:00:13]} dxe5 {[%emt 0:00:42]} 7. dxe5 {[%emt 0:00:07]} Ng4 {[%emt 0:00:08]} 8. Nf3 {[%emt 0:00:11]} Nc6 {[%emt 0:00:59]} 9. Bf4 {[%emt 0:00:50]} Nd4 {[%emt 0:03:19]} 10. Qd2 {[%emt 0:00:25]} f6 {[%emt 0:38:40]} 11. O-O-O {[%emt 0:06:43]} c5 {[%emt 0:00:15]} 12. Bg3 {[%emt 0:18:45]} Qa5 {[%emt 0:21:18]} 13. exf6 {[%emt 0:03:13]} Nxf6 {[%emt 0:00:44]} 14. Nxd4 {[%emt 0:02:18]} cxd4 {[%emt 0:00:02]} 15. Qxd4 {[%emt 0:00:09]} Bxc3 {[%emt 0:00:33]} 16. Qxc3 {[%emt 0:00:19]} Qxa2 {[%emt 0:00:11]} 17. Bd3 {[%emt 0:02:39]} Bd7 {[%emt 0:02:20]} 18. Bb1 {[%emt 0:03:34]} Qa1 {[%emt 0:01:17]} 19. Be5 {[%emt 0:03:15]} Be8 {[%emt 0:06:36]} 20. b3 {[%emt 0:04:35]} Qa3+ {[%emt 0:11:40]} 21. Qb2 {[%emt 0:00:54]} Qa5 {[%emt 0:00:05]} 22. Rhe1 {[%emt 0:05:12]} Rc8 {[%emt 0:01:08]} 23. Bd6 {[%emt 0:02:44]} b5 {[%emt 0:05:12]} 24. Bxf8 {[%emt 0:05:49]} Kxf8 {[%emt 0:00:02]} 25. Rxe6 {[%emt 0:01:14]} bxc4 {[%emt 0:00:01]} 26. b4 {[%emt 0:01:48]} Qh5 {[%emt 0:01:44]} 27. Qe5 {[%emt 0:02:58]} Qh6+ {[%emt 0:00:39]} 28. f4 {[%emt 0:01:05]} Ba4 {[%emt 0:03:50]} 29. Rdd6 {[%emt 0:03:14]} Re8 {[%emt 0:01:34]} 30. Rxf6+ {[%emt 0:00:37]} gxf6 {[%emt 0:00:07]} 31. Rxf6+ {[%emt 0:00:05]} Kg7 {[%emt 0:00:04]} 32. Rxh6+ {[%emt 0:00:08]} 1-0